fUSD/lending_fUSD_20241030
["ID","MTS","AMOUNT","RATE_DAILY","PERIOD"]
[341030744,1730287850583,-500.0,0.00034392,5]
[341030745,1730287850592,-333.23601791,0.00034392,5]
[341030746,1730287850601,-500.0,0.00034392,5]
[341030747,1730287850611,-267.46477373,0.00034392,5]
[341030748,1730287850620,-500.0,0.00034392,5]
[341030749,1730287850630,-1174.61,0.00034392,5]
[341030750,1730287850639,-500.0,0.00034392,5]
[341030751,1730287850648,-539.79425842,0.00034392,5]
[341030752,1730287850658,-542.95069001,0.00034392,5]
[341030753,1730287850667,-535.40184131,0.00034392,5]
[341030754,1730287850676,-500.0,0.00034392,5]
[341030755,1730287850686,-500.0,0.00034392,5]
[341030756,1730287850695,-193.97641,0.00034392,7]
[341030757,1730287850704,-500.0,0.00034392,5]
[341030758,1730287850714,-500.0,0.00034392,5]
[341030759,1730287850723,-500.0,0.00034392,5]
[341030760,1730287850732,-243.22767279,0.00034392,5]
[341030761,1730287850742,-500.0,0.00034392,5]
[341030762,1730287850752,-500.0,0.00034392,5]
[341030763,1730287850761,-500.0,0.00034392,5]
[341030764,1730287850771,-500.0,0.00034392,5]
[341030765,1730287850780,-529.44902527,0.00034392,5]
[341030766,1730287850789,-500.0,0.00034392,5]
[341030767,1730287850799,-500.0,0.00034392,5]
[341030768,1730287850808,-500.0,0.00034392,5]
[341030769,1730287850818,-500.0,0.00034392,5]
[341030770,1730287850828,-500.0,0.00034392,5]
[341030771,1730287850838,-500.0,0.00034392,5]
[341030772,1730287850847,-500.0,0.00034392,5]
[341030773,1730287850856,-500.0,0.00034392,5]
[341030774,1730287850866,-500.0,0.00034392,5]
[341030775,1730287850875,-538.77265087,0.00034392,5]
[341030776,1730287850884,-151.0,0.00034392,7]
[341030777,1730287850894,-188.14592011,0.00034392,5]
[341030778,1730287850903,-497.61467882,0.00034392,5]
[341030779,1730287850912,-500.0,0.00034392,5]
[341030780,1730287850921,-500.0,0.00034392,5]
[341030781,1730287850931,-500.0,0.00034392,5]
[341030782,1730287850940,-500.0,0.00034392,5]
[341030783,1730287850950,-500.0,0.00034392,5]
[341030784,1730287850959,-500.0,0.00034392,5]
[341030785,1730287850969,-500.0,0.00034392,5]
[341030786,1730287850978,-862.57,0.00034392,5]
[341030787,1730287850987,-777.97,0.00034392,5]
[341030788,1730287850996,-213.82083636,0.00034392,5]
[341030789,1730287851006,-1748.92,0.00034392,5]
[341030790,1730287851015,-500.0,0.00034392,5]
[341030791,1730287851024,-500.0,0.00034392,5]
[341030792,1730287851034,-500.0,0.00034392,5]
[341030793,1730287851043,-1344.36,0.00034392,5]
[341030794,1730287851053,-500.0,0.00034392,5]
[341030795,1730287851062,-434.30770845,0.00034392,5]
[341030796,1730287851072,-1589.7,0.00034392,5]
[341030797,1730287851083,-500.0,0.00034392,5]
[341030798,1730287851094,-500.0,0.00034392,5]
[341030799,1730287851103,-500.0,0.00034392,5]
[341030800,1730287851114,-500.0,0.00034392,5]
[341030801,1730287851125,-500.0,0.00034392,5]
[341030802,1730287851134,-500.0,0.00034392,5]
[341030803,1730287851144,-658.36,0.00034392,5]
[341030804,1730287851155,-500.0,0.00034392,5]
[341030805,1730287851164,-500.0,0.00034392,5]
[341030806,1730287851176,-500.0,0.00034392,5]
[341030807,1730287851186,-500.0,0.00034392,5]
[341030808,1730287851195,-500.0,0.00034392,5]
[341030809,1730287851205,-1302.57,0.00034392,5]
[341030810,1730287851214,-884.45,0.00034392,5]
[341030811,1730287851226,-500.0,0.00034392,5]
[341030812,1730287851236,-500.0,0.00034392,5]
[341030813,1730287851246,-500.0,0.00034392,5]
[341030814,1730287851260,-500.0,0.00034392,5]
[341030815,1730287851270,-500.0,0.00034392,5]
[341030816,1730287851281,-500.0,0.00034392,5]
[341030817,1730287851292,-500.0,0.00034392,5]
[341030818,1730287851302,-500.0,0.00034392,5]
[341030819,1730287851312,-500.0,0.00034392,5]
[341030820,1730287851325,-500.0,0.00034392,5]
[341030821,1730287851335,-500.0,0.00034392,5]
[341030822,1730287851345,-607.68632622,0.00034392,5]
[341030823,1730287851355,-500.0,0.00034392,5]
[341030824,1730287851365,-500.0,0.00034392,5]
[341030825,1730287851375,-500.0,0.00034392,5]
[341030826,1730287851386,-500.0,0.00034392,5]
[341030827,1730287851398,-500.0,0.00034392,5]
[341030828,1730287851408,-500.0,0.00034392,5]
[341030829,1730287851418,-500.0,0.00034392,5]
[341030830,1730287851428,-500.0,0.00034392,5]
[341030831,1730287851437,-500.0,0.00034392,5]
[341030832,1730287851447,-2212.61,0.00034392,5]
[341030833,1730287851456,-500.0,0.00034392,5]
[341030834,1730287851466,-500.0,0.00034392,5]
[341030835,1730287851476,-500.0,0.00034392,5]
[341030836,1730287851486,-500.0,0.00034392,5]
[341030837,1730287851497,-500.0,0.00034392,5]
[341030838,1730287851506,-588.43,0.00034392,5]
[341030839,1730287851516,-500.0,0.00034392,5]
[341030840,1730287851527,-500.0,0.00034392,5]
[341030841,1730287851537,-1000.0,0.00034392,5]
[341030842,1730287851547,-500.0,0.00034392,5]
[341030843,1730287851557,-500.0,0.00034392,5]
[341030844,1730287851566,-500.0,0.00034392,5]
[341030845,1730287851576,-500.0,0.00034392,5]
[341030846,1730287851585,-500.0,0.00034392,5]
[341030847,1730287851594,-574.51,0.00034392,5]
[341030848,1730287851604,-500.0,0.00034392,5]
[341030849,1730287851613,-500.0,0.00034392,5]
[341030850,1730287851622,-500.0,0.00034392,5]
[341030851,1730287851631,-500.0,0.00034392,5]
[341030852,1730287851641,-500.0,0.00034392,5]
[341030853,1730287851650,-500.0,0.00034392,5]
[341030854,1730287851659,-166.42671788,0.00034392,5]
[341030855,1730287851668,-500.0,0.00034392,5]
[341030856,1730287851678,-500.0,0.00034392,5]
[341030857,1730287851688,-500.0,0.00034392,5]
[341030858,1730287851697,-500.0,0.00034392,5]
[341030859,1730287851706,-1000.0,0.00034392,10]
[341030860,1730287851715,-985.37,0.00034392,5]
[341030861,1730287851724,-156.54859896,0.00034392,5]
[341030862,1730287851733,-500.0,0.00034392,5]
[341030863,1730287851742,-500.0,0.00034392,5]
[341030864,1730287851752,-500.0,0.00034392,5]
[341030865,1730287851762,-500.0,0.00034392,5]
[341030866,1730287851771,-524.19795752,0.00034392,5]
[341030867,1730287851780,-1061.29,0.00034392,5]
[341030868,1730287851789,-500.0,0.00034392,5]
[341030869,1730287851892,-442.984832,0.00034392,5]
[341030870,1730287851904,-540.47802384,0.00034392,5]
[341030871,1730287851915,-500.0,0.00034392,5]
[341030872,1730287851926,-525.35142548,0.00034392,5]
[341030873,1730287851935,-500.0,0.00034392,5]
[341030874,1730287851944,-500.0,0.00034392,5]
[341030875,1730287851954,-500.0,0.00034392,5]
[341030876,1730287851963,-500.0,0.00034392,5]
[341030877,1730287851973,-500.0,0.00034392,5]
[341030878,1730287851983,-500.0,0.00034392,5]
[341030879,1730287851993,-500.0,0.00034392,5]
[341030880,1730287852004,-555.88854011,0.00034392,5]
[341030881,1730287852015,-500.0,0.00034392,5]
[341030882,1730287852024,-517.48257476,0.00034392,5]
[341030883,1730287852034,-514.91553323,0.00034392,5]
[341030884,1730287852043,-500.0,0.00034392,5]
[341030885,1730287852053,-530.41879063,0.00034392,5]
[341030886,1730287852063,-500.0,0.00034392,5]
[341030887,1730287852073,-552.20707888,0.00034392,5]
[341030888,1730287852083,-500.0,0.00034392,5]
[341030889,1730287852092,-500.0,0.00034392,5]
[341030890,1730287852101,-500.0,0.00034392,5]
[341030891,1730287852111,-500.0,0.00034392,5]
[341030892,1730287852120,-588.35435929,0.00034392,5]
[341030893,1730287852130,-500.0,0.00034392,5]
[341030894,1730287852140,-500.0,0.00034392,5]
[341030895,1730287852150,-535.01426607,0.00034392,5]
[341030896,1730287852164,-2000.0,0.00034392,5]
[341030897,1730287852175,-500.0,0.00034392,5]
[341030898,1730287852187,-500.0,0.00034392,5]
[341030899,1730287852198,-500.0,0.00034392,5]
[341030900,1730287852207,-500.0,0.00034392,5]
[341030901,1730287852217,-797.09,0.00034392,5]
[341030902,1730287852227,-515.62481878,0.00034392,5]
[341030903,1730287852236,-527.16486955,0.00034392,5]
[341030904,1730287852246,-500.0,0.00034392,5]
[341030905,1730287852261,-500.0,0.00034392,5]
[341030906,1730287852270,-500.0,0.00034392,5]
[341030907,1730287852279,-500.0,0.00034392,5]
[341030908,1730287852290,-500.0,0.00034392,5]
[341030909,1730287852302,-500.0,0.00034392,5]
[341030910,1730287852313,-500.0,0.00034392,5]
[341030911,1730287852323,-517.90238361,0.00034392,5]
[341030912,1730287852335,-500.0,0.00034392,5]
[341030913,1730287852346,-500.0,0.00034392,5]
[341030914,1730287852357,-500.0,0.00034392,5]
[341030915,1730287852368,-500.0,0.00034392,5]
[341030916,1730287852379,-500.0,0.00034392,5]
[341030917,1730287852388,-1532.21,0.00034392,5]
[341030918,1730287852399,-500.0,0.00034392,5]
[341030919,1730287852409,-500.0,0.00034392,5]
[341030920,1730287852419,-500.0,0.00034392,5]
[341030921,1730287852429,-500.0,0.00034392,5]
[341030922,1730287852439,-3567.53,0.00034392,5]
[341030923,1730287852448,-500.0,0.00034392,5]
[341030924,1730287852458,-500.0,0.00034392,5]
[341030925,1730287852468,-500.0,0.00034392,5]
[341030926,1730287852478,-508.73237431,0.00034392,5]
[341030927,1730287852488,-500.0,0.00034392,5]
[341030928,1730287852498,-500.0,0.00034392,5]
[341030929,1730287852508,-500.0,0.00034392,5]
[341030930,1730287852518,-500.0,0.00034392,5]
[341030931,1730287852527,-500.0,0.00034392,5]
[341030932,1730287852537,-500.0,0.00034392,5]
[341030933,1730287852547,-516.21,0.00034392,5]
[341030934,1730287852557,-500.0,0.00034392,5]
[341030935,1730287852567,-500.0,0.00034392,5]
[341030936,1730287852576,-500.0,0.00034392,5]
[341030937,1730287852586,-500.0,0.00034392,5]
[341030938,1730287852596,-500.0,0.00034392,5]
[341030939,1730287852606,-523.47632373,0.00034392,5]
[341030940,1730287852615,-583.17,0.00034392,5]
[341030941,1730287852626,-500.0,0.00034392,5]
[341030942,1730287852635,-500.0,0.00034392,5]
[341030943,1730287852645,-500.0,0.00034392,5]
[341030944,1730287852654,-500.0,0.00034392,5]
[341030945,1730287852664,-500.0,0.00034392,5]
[341030946,1730287852674,-500.0,0.00034392,5]
[341030947,1730287852683,-500.0,0.00034392,5]
[341030948,1730287852692,-500.0,0.00034392,7]
[341030949,1730287852703,-500.0,0.00034392,5]
[341030950,1730287852713,-1006.59,0.00034392,5]
[341030951,1730287852722,-500.0,0.00034392,5]
[341030952,1730287852732,-500.0,0.00034392,5]
[341030953,1730287852742,-500.0,0.00034392,5]
[341030954,1730287852751,-500.0,0.00034392,5]
[341030955,1730287852761,-500.0,0.00034392,5]
[341030956,1730287852770,-500.0,0.00034392,5]
[341030957,1730287852779,-500.0,0.00034392,5]
[341030958,1730287852789,-1027.25,0.00034392,5]
[341030959,1730287852798,-1122.81,0.00034392,5]
[341030960,1730287852808,-500.0,0.00034392,5]
[341030961,1730287852818,-500.0,0.00034392,5]
[341030962,1730287852828,-500.0,0.00034392,5]
[341030963,1730287852837,-500.0,0.00034392,5]
[341030964,1730287852847,-500.0,0.00034392,5]
[341030965,1730287852856,-752.68,0.00034392,5]
[341030966,1730287852867,-500.0,0.00034392,5]
[341030967,1730287852876,-691.52,0.00034392,5]
[341030968,1730287852886,-500.0,0.00034392,5]
[341030969,1730287852895,-1698.81,0.00034392,5]
[341030970,1730287852904,-500.0,0.00034392,5]
[341030971,1730287852914,-152.269127,0.00034392,7]
[341030972,1730287852923,-152.269127,0.00034392,7]
[341030973,1730287852933,-152.269127,0.00034392,7]
[341030974,1730287852942,-500.0,0.00034392,5]
[341030975,1730287852952,-769.39,0.00034392,5]
[341030976,1730287852961,-2556.13,0.00034392,5]
[341030977,1730287852970,-152.269127,0.00034392,7]
[341030978,1730287852980,-152.269127,0.00034392,7]
[341030979,1730287852989,-152.269127,0.00034392,7]
[341030980,1730287852998,-500.0,0.00034392,5]
[341030981,1730287853008,-2886.2,0.00034392,5]
[341030982,1730287853017,-500.0,0.00034392,5]
[341030983,1730287853026,-1028.94,0.00034392,5]
[341030984,1730287853036,-500.0,0.00034392,5]
[341030985,1730287853045,-465.7157181,0.00034392,5]
[341030986,1730287853054,-1236.5,0.00034392,5]
[341030987,1730287853064,-500.0,0.00034392,5]
[341030988,1730287853073,-500.0,0.00034392,5]
[341030989,1730287853082,-500.0,0.00034392,5]
[341030990,1730287853092,-500.0,0.00034392,5]
[341030991,1730287853101,-1206.14,0.00034392,5]
[341030992,1730287853111,-500.0,0.00034392,5]
[341030993,1730287853120,-500.0,0.00034392,5]
[341030994,1730287853129,-500.0,0.00034392,5]
[341030995,1730287853138,-500.0,0.00034392,5]
[341030996,1730287853148,-500.0,0.00034392,5]
[341030997,1730287853158,-1267.5,0.00034392,5]
[341030998,1730287853167,-500.0,0.00034392,5]
[341030999,1730287853177,-500.0,0.00034392,5]
[341031000,1730287853186,-500.0,0.00034392,5]
[341031001,1730287853197,-500.0,0.00034392,5]
[341031002,1730287853206,-500.0,0.00034392,5]
[341031003,1730287853216,-1728.05,0.00034392,5]
[341031004,1730287853226,-1331.93,0.00034392,5]
[341031005,1730287853235,-500.0,0.00034392,5]
[341031006,1730287853245,-500.0,0.00034392,5]
[341031007,1730287853258,-500.0,0.00034392,5]
[341031008,1730287853268,-428.36907733,0.00034392,5]
[341031009,1730287853277,-507.79917703,0.00034392,5]
[341031010,1730287853286,-500.0,0.00034392,5]
[341031011,1730287853296,-2000.0,0.00034392,5]
[341031012,1730287853305,-500.0,0.00034392,5]
[341031013,1730287853315,-979.39,0.00034392,5]
[341031014,1730287853416,-500.0,0.00034392,5]
[341031015,1730287853426,-500.0,0.00034392,5]
[341031016,1730287853436,-151.0,0.00034392,7]
[341031017,1730287853445,-500.0,0.00034392,5]
[341031018,1730287853454,-500.0,0.00034392,5]
[341031019,1730287853464,-500.0,0.00034392,5]
[341031020,1730287853474,-500.0,0.00034392,5]
[341031021,1730287853483,-500.0,0.00034392,5]
[341031022,1730287853494,-500.0,0.00034392,5]
[341031023,1730287853503,-500.0,0.00034392,5]
[341031024,1730287853514,-500.0,0.00034392,5]
[341031025,1730287853523,-500.0,0.00034392,5]
[341031026,1730287853533,-541.83823747,0.00034392,5]
[341031027,1730287853543,-500.0,0.00034392,5]
[341031028,1730287853553,-500.0,0.00034392,5]
[341031029,1730287853563,-500.0,0.00034392,5]
[341031030,1730287853572,-500.0,0.00034392,5]
[341031031,1730287853581,-500.0,0.00034392,5]
[341031032,1730287853590,-500.0,0.00034392,5]
[341031033,1730287853601,-500.0,0.00034392,5]
[341031034,1730287853611,-500.0,0.00034392,5]
[341031035,1730287853621,-516.82437336,0.00034393,5]
[341031036,1730287853631,-373.07598008,0.00034393,5]
[341031037,1730287853640,-515.58346935,0.00034393,5]
[341031038,1730287853650,-519.37192674,0.00034393,5]
[341031039,1730287853661,-191.86500627,0.00034393,5]
[341031040,1730287853671,-522.66001145,0.00034393,5]
[341031041,1730287853681,-178.81095408,0.00034393,5]
[341031042,1730287853690,-505.80108105,0.00034393,5]
[341031043,1730287853700,-515.89051759,0.00034393,5]
[341031044,1730287853710,-314.09211499,0.00034393,5]
[341031045,1730287853720,-231.86217805,0.00034393,5]
[341031046,1730287853729,-181.03758316,0.00034393,5]
[341031047,1730287853739,-514.38215797,0.00034393,5]
[341031048,1730287853749,-510.45622814,0.00034393,5]
[341031049,1730287853759,-507.20754769,0.00034393,5]
[341031050,1730287853769,-632.56281667,0.00034393,5]
[341031051,1730287853778,-195.82291481,0.00034393,5]
[341031052,1730287853788,-504.55718503,0.00034393,5]
[341031053,1730287853798,-549.23977777,0.00034393,5]
[341031054,1730287853807,-504.2359542,0.00034393,5]
[341031055,1730287853817,-509.95526255,0.00034393,5]
[341031056,1730287853826,-500.0,0.00034393,5]
[341031057,1730287853836,-500.0,0.00034393,5]
[341031058,1730287853845,-500.0,0.00034393,5]
[341031059,1730287853855,-402.90463608,0.00034393,5]
[341031060,1730287853864,-500.0,0.00034393,5]
[341031061,1730287853874,-200.0,0.00034393,2]
[341031062,1730287853883,-504.10913617,0.00034393,5]
[341031063,1730287853893,-300.0,0.00034393,5]
[341031064,1730287853902,-500.0,0.00034393,5]
[341031065,1730287853912,-500.0,0.00034393,5]
[341031066,1730287853921,-505.55722744,0.00034393,5]
[341031067,1730287853931,-500.0,0.00034393,5]
[341031068,1730287853941,-500.0,0.00034393,5]
[341031069,1730287853951,-511.95931487,0.00034393,5]
[341031070,1730287853960,-500.0,0.00034393,5]
[341031071,1730287853970,-500.0,0.00034393,5]
[341031072,1730287853979,-443.78481512,0.00034393,5]
[341031073,1730287853989,-500.0,0.00034393,5]
[341031074,1730287853998,-539.97611982,0.00034393,5]
[341031075,1730287854008,-566.58540026,0.00034393,5]
[341031076,1730287854017,-500.0,0.00034393,5]
[341031077,1730287854027,-500.0,0.00034393,5]
[341031078,1730287854037,-546.7,0.00034393,5]
[341031079,1730287854046,-500.0,0.00034393,5]
[341031080,1730287854063,-500.0,0.00034393,5]
[341031081,1730287854083,-500.0,0.00034393,5]
[341031082,1730287854100,-500.0,0.00034393,5]
[341031083,1730287854119,-500.0,0.00034393,5]
[341031084,1730287854139,-500.0,0.00034393,5]
[341031085,1730287854156,-500.0,0.00034393,5]
[341031086,1730287854173,-500.0,0.00034393,5]
[341031087,1730287854189,-500.0,0.00034393,5]
[341031088,1730287854206,-300.0,0.00034393,5]
[341031089,1730287854223,-500.0,0.00034393,5]
[341031090,1730287854241,-500.0,0.00034393,5]
[341031091,1730287854261,-500.0,0.00034393,5]
[341031092,1730287854274,-500.0,0.00034393,5]
[341031093,1730287854292,-500.0,0.00034393,5]
[341031094,1730287854307,-500.0,0.00034393,5]
[341031095,1730287854323,-500.0,0.00034393,5]
[341031096,1730287854337,-151.08098802,0.00034393,5]
[341031097,1730287854352,-500.0,0.00034393,5]
[341031098,1730287854366,-500.0,0.00034393,5]
[341031099,1730287854380,-500.0,0.00034393,5]
[341031100,1730287854394,-500.0,0.00034393,5]
[341031101,1730287854408,-500.0,0.00034393,5]
[341031102,1730287854423,-500.0,0.00034393,5]
[341031103,1730287854437,-500.0,0.00034393,5]
[341031104,1730287854452,-500.0,0.00034393,5]
[341031105,1730287854469,-500.0,0.00034393,5]
[341031106,1730287854483,-500.0,0.00034393,5]
[341031107,1730287854497,-500.0,0.00034393,5]
[341031108,1730287854511,-500.0,0.00034393,5]
[341031109,1730287854525,-500.0,0.00034393,5]
[341031110,1730287854539,-500.0,0.00034393,5]
[341031111,1730287854554,-500.0,0.00034393,5]
[341031112,1730287854568,-500.0,0.00034393,5]
[341031113,1730287854583,-500.0,0.00034393,5]
[341031114,1730287854597,-500.0,0.00034393,5]
[341031115,1730287854612,-500.0,0.00034393,5]
[341031116,1730287854626,-500.0,0.00034393,5]
[341031117,1730287854640,-500.0,0.00034393,5]
[341031118,1730287854653,-500.0,0.00034393,5]
[341031119,1730287854668,-500.0,0.00034393,5]
[341031120,1730287854683,-500.0,0.00034393,5]
[341031121,1730287854697,-500.0,0.00034393,5]
[341031122,1730287854712,-500.0,0.00034393,5]
[341031123,1730287854726,-500.0,0.00034393,5]
[341031124,1730287854740,-150.0,0.00034393,5]
[341031125,1730287854755,-500.0,0.00034393,5]
[341031126,1730287854769,-500.0,0.00034393,5]
[341031127,1730287854783,-500.0,0.00034393,5]
[341031128,1730287854798,-500.0,0.00034393,5]
[341031129,1730287854813,-500.0,0.00034393,5]
[341031130,1730287854827,-480.6994181,0.00034393,5]
[341031131,1730287854842,-500.0,0.00034393,5]
[341031132,1730287854857,-500.0,0.00034393,5]
[341031133,1730287854871,-151.0,0.00034393,7]
[341031134,1730287854886,-500.0,0.00034393,5]
[341031135,1730287854900,-151.0,0.00034393,7]
[341031136,1730287854915,-151.0,0.00034393,7]
[341031137,1730287854929,-151.0,0.00034393,7]
[341031138,1730287854944,-500.0,0.00034393,5]
[341031139,1730287854958,-533.804646,0.00034393,5]
[341031140,1730287854972,-552.2780423,0.00034393,5]
[341031141,1730287854987,-500.0,0.00034393,5]
[341031142,1730287854999,-156.545477,0.00034393,7]
[341031143,1730287855010,-500.0,0.00034393,5]
[341031144,1730287855020,-500.0,0.00034393,5]
[341031145,1730287855030,-500.0,0.00034393,5]
[341031146,1730287855039,-523.36498244,0.00034393,5]
[341031147,1730287855049,-500.0,0.00034393,5]
[341031148,1730287855256,-500.0,0.00034393,5]
[341031149,1730287855277,-500.0,0.00034393,5]
[341031150,1730287855287,-500.0,0.00034393,5]
[341031151,1730287855297,-544.45542013,0.00034393,5]
[341031152,1730287855307,-500.0,0.00034393,5]
[341031153,1730287855316,-500.0,0.00034393,5]
[341031154,1730287855327,-500.0,0.00034393,5]
[341031155,1730287855337,-466.90945325,0.00034393,5]
[341031156,1730287855348,-500.0,0.00034393,5]
[341031157,1730287855358,-500.0,0.00034393,5]
[341031158,1730287855367,-500.0,0.00034393,5]
[341031159,1730287855376,-1507.49,0.00034393,5]
[341031160,1730287855386,-155.944253,0.00034393,7]
[341031161,1730287855395,-500.0,0.00034393,5]
[341031162,1730287855405,-500.0,0.00034393,5]
[341031163,1730287855415,-500.0,0.00034393,5]
[341031164,1730287855424,-500.0,0.00034393,5]
[341031165,1730287855434,-500.0,0.00034393,5]
[341031166,1730287855443,-622.75254662,0.00034393,5]
[341031167,1730287855454,-500.0,0.00034393,5]
[341031168,1730287855465,-676.32,0.00034393,5]
[341031169,1730287855474,-557.27265903,0.00034393,5]
[341031170,1730287855485,-500.0,0.00034393,5]
[341031171,1730287855496,-1022.39,0.00034393,5]
[341031172,1730287855505,-1138.41,0.00034393,5]
[341031173,1730287855515,-500.0,0.00034393,5]
[341031174,1730287855525,-1014.67,0.00034393,5]
[341031175,1730287855534,-500.0,0.00034393,5]
[341031176,1730287855544,-500.0,0.00034393,5]
[341031177,1730287855554,-152.269127,0.00034393,7]
[341031178,1730287855563,-152.269127,0.00034393,7]
[341031179,1730287855573,-152.269127,0.00034393,7]
[341031180,1730287855583,-152.269127,0.00034393,7]
[341031181,1730287855592,-150.0,0.00034407,2]
[341031182,1730287855601,-150.0,0.00034418,2]
[341031183,1730287855611,-309.70273747,0.00034429,2]
[341031184,1730287855620,-150.0,0.00034437,2]
[341031185,1730287855630,-150.0,0.0003444,2]
[341031186,1730287855640,-150.0,0.00034442,2]
[341031187,1730287855649,-1500.0,0.0003449,60]
[341031188,1730287855659,-1500.0,0.0003449,59]
[341031189,1730287855667,-150.0,0.00034493,2]
[341031190,1730287855676,-500.0,0.00034493,5]
[341031191,1730287855686,-500.0,0.00034493,5]
[341031192,1730287855696,-500.0,0.00034493,5]
[341031193,1730287855706,-500.0,0.00034494,5]
[341031194,1730287855715,-309.70273747,0.00034498,2]
[341031195,1730287855725,-1042.586098,0.000345,2]
[341031196,1730287855735,-867.11,0.0003452,5]
[341031197,1730287855745,-978.71,0.0003452,5]
[341031198,1730287855754,-500.0,0.0003452,5]
[341031199,1730287855764,-1297.33,0.0003452,5]
[341031200,1730287855773,-515.34235047,0.0003452,5]
[341031201,1730287855782,-500.0,0.0003452,5]
[341031202,1730287855792,-927.96,0.0003452,5]
[341031203,1730287855802,-500.0,0.0003452,5]
[341031204,1730287855812,-501.54,0.0003452,5]
[341031205,1730287855822,-150.0,0.00034521,2]
[341031206,1730287855831,-150.0,0.00034521,2]
[341031207,1730287855841,-150.0,0.00034521,2]
[341031208,1730287855851,-150.0,0.00034521,2]
[341031209,1730287855860,-176.95,0.00034557,2]
[341031210,1730287855869,-150.0,0.00034557,2]
[341031211,1730287855879,-309.70273747,0.00034567,2]
[341031212,1730287855888,-397.0,0.000346,20]
[341031213,1730287855898,-150.0,0.00034614,2]
[341031214,1730287855907,-309.70273747,0.00034637,2]
[341031215,1730287855918,-150.0,0.00034639,2]
[341031216,1730287855927,-150.0,0.00034656,2]
[341031217,1730287855937,-784.81,0.00034664,5]
[341031218,1730287855947,-1834.74,0.00034664,5]
[341031219,1730287855956,-1511.74,0.00034664,5]
[341031220,1730287855966,-507.73,0.00034664,5]
[341031221,1730287855976,-1006.59,0.00034664,5]
[341031222,1730287855985,-500.0,0.00034664,5]
[341031223,1730287855994,-573.27,0.00034664,5]
[341031224,1730287856004,-500.0,0.00034664,5]
[341031225,1730287856014,-2246.81,0.00034664,5]
[341031226,1730287856024,-664.0,0.00034664,5]
[341031227,1730287856035,-600.55830076,0.00034664,5]
[341031228,1730287856046,-500.0,0.00034664,5]
[341031229,1730287856056,-500.0,0.00034664,5]
[341031230,1730287856066,-500.0,0.00034664,5]
[341031231,1730287856076,-500.0,0.00034664,5]
[341031232,1730287856086,-500.0,0.00034664,5]
[341031233,1730287856096,-152.269127,0.00034664,7]
[341031234,1730287856106,-522.68,0.00034664,5]
[341031235,1730287856116,-754.99,0.00034664,5]
[341031236,1730287856126,-152.269127,0.00034664,7]
[341031237,1730287856135,-500.0,0.00034664,5]
[341031238,1730287856144,-500.0,0.00034664,5]
[341031239,1730287856153,-535.9,0.00034664,5]
[341031240,1730287856163,-1710.39,0.00034664,5]
[341031241,1730287856173,-1330.52,0.00034664,5]
[341031242,1730287856182,-500.0,0.00034664,5]
[341031243,1730287856192,-1233.13,0.00034664,5]